[Event "Betsys MČR v online bleskovém šachu 2021"]
[Site "Chess.com"]
[Date "2021.04.17"]
[Round "8"]
[White "JJ95"]
[Black "Smetanka674"]
[Result "1-0"]
[WhiteElo "2018"]
[BlackElo "1758"]
[TimeControl "180+1"]
[EndTime "10:21:35 PDT"]
[Termination "Uživatel JJ95 zvítězil matem"]

1. e4 {[%clk 0:03:00.9]} 1... e6 {[%clk 0:02:59.2]} 2. d4 {[%clk 0:03:00.7]}
2... d5 {[%clk 0:02:59.3]} 3. e5 {[%clk 0:03:01.3]} 3... c5 {[%clk 0:02:59.4]}
4. c3 {[%clk 0:03:02]} 4... Nc6 {[%clk 0:02:59.6]} 5. Nf3 {[%clk 0:03:02.6]}
5... Qb6 {[%clk 0:02:59.8]} 6. a3 {[%clk 0:03:02.8]} 6... Nh6 {[%clk 0:02:56.5]}
7. b4 {[%clk 0:03:01.6]} 7... cxd4 {[%clk 0:02:52.2]} 8. cxd4 {[%clk 0:03:02.5]}
8... Nf5 {[%clk 0:02:51.9]} 9. Bb2 {[%clk 0:03:02]} 9... a5 {[%clk 0:02:50.4]}
10. b5 {[%clk 0:02:59.2]} 10... a4 {[%clk 0:02:43.8]} 11. g4 {[%clk 0:02:57]}
11... Nh6 {[%clk 0:02:30.8]} 12. h3 {[%clk 0:02:55.3]} 12... Be7 {[%clk
0:02:19.9]} 13. Bd3 {[%clk 0:02:44.8]} 13... Nb8 {[%clk 0:02:09.4]} 14. Nc3
{[%clk 0:02:41.1]} 14... Nd7 {[%clk 0:02:08.3]} 15. O-O {[%clk 0:02:36.4]} 15...
Qa5 {[%clk 0:02:01.7]} 16. Rc1 {[%clk 0:02:12.9]} 16... Nb6 {[%clk 0:01:48.7]}
17. Nd2 {[%clk 0:01:53.9]} 17... f6 {[%clk 0:01:47.3]} 18. f4 {[%clk 0:01:51.8]}
18... O-O {[%clk 0:01:44]} 19. Qc2 {[%clk 0:01:45.8]} 19... f5 {[%clk
0:01:37.8]} 20. g5 {[%clk 0:01:40.9]} 20... Nf7 {[%clk 0:01:36.6]} 21. Na2
{[%clk 0:01:30.7]} 21... Bd7 {[%clk 0:01:32.7]} 22. Bc3 {[%clk 0:01:24.2]} 22...
Qa7 {[%clk 0:01:31.2]} 23. Bb4 {[%clk 0:01:22.5]} 23... Bxb4 {[%clk 0:01:27.8]}
24. Nxb4 {[%clk 0:01:23.4]} 24... Rac8 {[%clk 0:01:18.3]} 25. Qb2 {[%clk
0:01:20.9]} 25... Nh8 {[%clk 0:01:06.5]} 26. Kg2 {[%clk 0:01:08.4]} 26... Ng6
{[%clk 0:01:06]} 27. Kg3 {[%clk 0:01:04.5]} 27... h6 {[%clk 0:00:57.5]} 28. h4
{[%clk 0:00:59.7]} 28... Qa5 {[%clk 0:00:40.2]} 29. h5 {[%clk 0:00:54.5]} 29...
Ne7 {[%clk 0:00:37.7]} 30. gxh6 {[%clk 0:00:42.3]} 30... gxh6 {[%clk 0:00:36.7]}
31. Kf3 {[%clk 0:00:36.6]} 31... Kh7 {[%clk 0:00:36.1]} 32. Rg1 {[%clk
0:00:34.2]} 32... Bxb5 {[%clk 0:00:34.6]} 33. Rxc8 {[%clk 0:00:16.7]} 33... Rxc8
{[%clk 0:00:33.4]} 34. Nf1 {[%clk 0:00:04.6]} 34... Bxd3 {[%clk 0:00:25.8]} 35.
Nxd3 {[%clk 0:00:05.5]} 35... Rc7 {[%clk 0:00:17.5]} 36. Ne3 {[%clk 0:00:04.5]}
36... Nd7 {[%clk 0:00:16.5]} 37. Nb4 {[%clk 0:00:02.9]} 37... Nb6 {[%clk
0:00:14.3]} 38. Qg2 {[%clk 0:00:02.7]} 38... Ng8 {[%clk 0:00:07]} 39. Qxg8#
{[%clk 0:00:02.4]} 1-0

[Event "Betsys MČR v online bleskovém šachu 2021"]
[Site "Chess.com"]
[Date "2021.04.17"]
[Round "8"]
[White "Ondre2836"]
[Black "dnovotny"]
[Result "0-1"]
[WhiteElo "1240"]
[BlackElo "1719"]
[TimeControl "180+1"]
[EndTime "10:21:35 PDT"]
[Termination "Uživatel dnovotny zvítězil na čas"]

1. e4 {[%clk 0:02:58.9]} 1... c5 {[%clk 0:02:59.4]} 2. Nf3 {[%clk 0:02:55.4]}
2... d6 {[%clk 0:02:59.4]} 3. d4 {[%clk 0:02:54.5]} 3... cxd4 {[%clk 0:03:00.3]}
4. Nxd4 {[%clk 0:02:54.2]} 4... Nf6 {[%clk 0:03:00.8]} 5. f3 {[%clk 0:02:52.3]}
5... a6 {[%clk 0:02:52]} 6. c4 {[%clk 0:02:50.9]} 6... g6 {[%clk 0:02:40.6]} 7.
Nc3 {[%clk 0:02:48.6]} 7... Bg7 {[%clk 0:02:40.6]} 8. Be3 {[%clk 0:02:45.4]}
8... O-O {[%clk 0:02:36.2]} 9. Be2 {[%clk 0:02:44.3]} 9... Nc6 {[%clk
0:02:28.6]} 10. O-O {[%clk 0:02:34]} 10... Bd7 {[%clk 0:02:25.5]} 11. Qd2 {[%clk
0:02:31.5]} 11... Rc8 {[%clk 0:02:24.6]} 12. b3 {[%clk 0:02:30.7]} 12... e6
{[%clk 0:01:57.5]} 13. Rac1 {[%clk 0:02:26]} 13... Qe7 {[%clk 0:01:51.1]} 14.
Rfd1 {[%clk 0:02:18.5]} 14... Rfd8 {[%clk 0:01:50.4]} 15. Kh1 {[%clk 0:01:59.8]}
15... Be8 {[%clk 0:01:43.8]} 16. Bf2 {[%clk 0:01:47.8]} 16... d5 {[%clk
0:01:42.9]} 17. exd5 {[%clk 0:01:43]} 17... exd5 {[%clk 0:01:36.1]} 18. Nxc6
{[%clk 0:01:38.1]} 18... bxc6 {[%clk 0:01:26.9]} 19. cxd5 {[%clk 0:01:35.3]}
19... cxd5 {[%clk 0:00:54.1]} 20. Bd4 {[%clk 0:01:26.6]} 20... a5 {[%clk
0:00:48]} 21. Bb6 {[%clk 0:01:09.7]} 21... Rd6 {[%clk 0:00:33.1]} 22. Bxa5
{[%clk 0:01:06.1]} 22... Ra6 {[%clk 0:00:21.8]} 23. Nxd5 {[%clk 0:00:49.2]}
23... Nxd5 {[%clk 0:00:17.5]} 24. Qxd5 {[%clk 0:00:46.6]} 24... Rxc1 {[%clk
0:00:13.5]} 25. Rxc1 {[%clk 0:00:44.5]} 25... Qxe2 {[%clk 0:00:12.5]} 26. h3
{[%clk 0:00:16.7]} 26... h5 {[%clk 0:00:12.3]} 27. Qg5 {[%clk 0:00:11.7]} 27...
Qf2 {[%clk 0:00:11.5]} 28. Qc5 {[%clk 0:00:06.4]} 28... Qxc5 {[%clk 0:00:09.3]}
29. Rxc5 {[%clk 0:00:06.5]} 29... Re6 {[%clk 0:00:05.7]} 30. Rc1 {[%clk
0:00:05.5]} 30... Re2 {[%clk 0:00:05.7]} 31. a4 {[%clk 0:00:03.2]} 31... Bd4
{[%clk 0:00:05]} 0-1

[Event "Betsys MČR v online bleskovém šachu 2021"]
[Site "Chess.com"]
[Date "2021.04.17"]
[Round "8"]
[White "Danyjel"]
[Black "Tynano"]
[Result "0-1"]
[WhiteElo "1694"]
[BlackElo "1987"]
[TimeControl "180+1"]
[EndTime "10:21:37 PDT"]
[Termination "Uživatel Tynano zvítězil po vzdání soupeře"]

1. e4 {[%clk 0:03:00.3]} 1... e5 {[%clk 0:03:00.1]} 2. Nf3 {[%clk 0:03:00.4]}
2... Nc6 {[%clk 0:03:00.6]} 3. Bc4 {[%clk 0:03:00.4]} 3... Nf6 {[%clk
0:03:00.1]} 4. d3 {[%clk 0:03:00.4]} 4... Be7 {[%clk 0:02:59.6]} 5. O-O {[%clk
0:02:59.9]} 5... O-O {[%clk 0:02:58.3]} 6. c3 {[%clk 0:03:00]} 6... d6 {[%clk
0:02:58.1]} 7. Re1 {[%clk 0:02:59.5]} 7... Na5 {[%clk 0:02:58]} 8. Bb5 {[%clk
0:02:58.8]} 8... a6 {[%clk 0:02:58.5]} 9. Ba4 {[%clk 0:02:58.9]} 9... b5 {[%clk
0:02:59.1]} 10. Bc2 {[%clk 0:02:59]} 10... c5 {[%clk 0:02:59]} 11. Nbd2 {[%clk
0:02:58.8]} 11... Bg4 {[%clk 0:02:58.4]} 12. Nf1 {[%clk 0:02:58.7]} 12... d5
{[%clk 0:02:53]} 13. h3 {[%clk 0:02:52.8]} 13... dxe4 {[%clk 0:02:45.5]} 14.
hxg4 {[%clk 0:02:43.1]} 14... exf3 {[%clk 0:02:41.8]} 15. Qxf3 {[%clk
0:02:42.7]} 15... Bd6 {[%clk 0:02:36.5]} 16. Ng3 {[%clk 0:02:36.9]} 16... g6
{[%clk 0:02:22.7]} 17. Bg5 {[%clk 0:02:35.7]} 17... Be7 {[%clk 0:02:14.2]} 18.
Rxe5 {[%clk 0:02:27.8]} 18... Qd6 {[%clk 0:01:57]} 19. Rxe7 {[%clk 0:02:06.2]}
19... Qxe7 {[%clk 0:01:57.9]} 20. Qxf6 {[%clk 0:02:05.2]} 20... Qxf6 {[%clk
0:01:57.7]} 21. Bxf6 {[%clk 0:02:04.9]} 21... c4 {[%clk 0:01:57.7]} 22. d4
{[%clk 0:02:02.1]} 22... Rfe8 {[%clk 0:01:56]} 23. Be5 {[%clk 0:01:57.9]} 23...
Nc6 {[%clk 0:01:52.5]} 24. Be4 {[%clk 0:01:45.5]} 24... Rac8 {[%clk 0:01:44.9]}
25. Bxc6 {[%clk 0:01:45]} 25... Rxc6 {[%clk 0:01:45.8]} 26. Ne4 {[%clk 0:01:43]}
26... Rd8 {[%clk 0:01:29.7]} 27. Re1 {[%clk 0:01:38.4]} 27... f5 {[%clk
0:01:26.6]} 28. gxf5 {[%clk 0:01:37.2]} 28... gxf5 {[%clk 0:01:27.5]} 29. Nf6+
{[%clk 0:01:33.6]} 29... Kf7 {[%clk 0:01:26]} 30. Nxh7 {[%clk 0:01:17.5]} 30...
Re8 {[%clk 0:01:20.7]} 31. Ng5+ {[%clk 0:01:14.4]} 31... Kg6 {[%clk 0:01:20.3]}
32. Nf3 {[%clk 0:01:13]} 32... Rce6 {[%clk 0:01:15.9]} 33. g3 {[%clk 0:01:11]}
33... Kh5 {[%clk 0:01:14.6]} 34. Kg2 {[%clk 0:01:08.7]} 34... Kg6 {[%clk
0:01:13]} 35. Rh1 {[%clk 0:01:08]} 35... a5 {[%clk 0:01:09.9]} 36. Nh4+ {[%clk
0:01:07.5]} 36... Kf7 {[%clk 0:00:56.6]} 37. f4 {[%clk 0:01:06.4]} 37... b4
{[%clk 0:00:54.8]} 38. Nf3 {[%clk 0:01:05.7]} 38... Kg6 {[%clk 0:00:48.8]} 39.
Ng5 {[%clk 0:00:58.4]} 39... Rb6 {[%clk 0:00:47.6]} 40. Kf3 {[%clk 0:00:48.9]}
40... bxc3 {[%clk 0:00:47.5]} 41. bxc3 {[%clk 0:00:48.3]} 41... Rb2 {[%clk
0:00:47.3]} 42. Ra1 {[%clk 0:00:43]} 42... Rc2 {[%clk 0:00:46.6]} 43. d5 {[%clk
0:00:41.4]} 43... Rd8 {[%clk 0:00:42.8]} 44. d6 {[%clk 0:00:41.1]} 44... Rd2
{[%clk 0:00:41.3]} 45. Ne6 {[%clk 0:00:37.8]} 45... Rd3+ {[%clk 0:00:41.1]} 46.
Kf2 {[%clk 0:00:36.2]} 46... Rb8 {[%clk 0:00:40.4]} 47. Nc5 {[%clk 0:00:32.2]}
47... Rb2+ {[%clk 0:00:39.8]} 48. Ke1 {[%clk 0:00:30]} 48... Rxg3 {[%clk
0:00:39.1]} 49. Kf1 {[%clk 0:00:20.4]} 49... Rf3+ {[%clk 0:00:36.3]} 50. Ke1
{[%clk 0:00:18.2]} 50... Rh3 {[%clk 0:00:36]} 51. Bd4 {[%clk 0:00:10.3]} 51...
Rh1+ {[%clk 0:00:35.3]} 0-1

[Event "Betsys MČR v online bleskovém šachu 2021"]
[Site "Chess.com"]
[Date "2021.04.17"]
[Round "8"]
[White "mayerrs"]
[Black "AdaTra"]
[Result "0-1"]
[WhiteElo "1852"]
[BlackElo "1665"]
[TimeControl "180+1"]
[EndTime "10:21:38 PDT"]
[Termination "Uživatel AdaTra zvítězil matem"]

1. g3 {[%clk 0:03:00.9]} 1... d5 {[%clk 0:02:59.1]} 2. Bg2 {[%clk 0:03:01.8]}
2... Nf6 {[%clk 0:02:58.4]} 3. b3 {[%clk 0:03:01.5]} 3... Bf5 {[%clk 0:02:56.3]}
4. Bb2 {[%clk 0:03:01]} 4... e6 {[%clk 0:02:54.4]} 5. c4 {[%clk 0:02:59.6]} 5...
c6 {[%clk 0:02:53.8]} 6. Nc3 {[%clk 0:02:44]} 6... Be7 {[%clk 0:02:52.4]} 7.
cxd5 {[%clk 0:02:41.6]} 7... exd5 {[%clk 0:02:51.5]} 8. d3 {[%clk 0:02:37.7]}
8... O-O {[%clk 0:02:50.1]} 9. Nf3 {[%clk 0:02:36.8]} 9... Nbd7 {[%clk
0:02:43.2]} 10. O-O {[%clk 0:02:36.6]} 10... Re8 {[%clk 0:02:29.4]} 11. Re1
{[%clk 0:02:36.8]} 11... Bf8 {[%clk 0:02:25.3]} 12. Qc2 {[%clk 0:02:31.4]} 12...
h6 {[%clk 0:02:18]} 13. e4 {[%clk 0:02:28.6]} 13... dxe4 {[%clk 0:02:14.4]} 14.
dxe4 {[%clk 0:02:29.5]} 14... Bh7 {[%clk 0:02:00.3]} 15. b4 {[%clk 0:02:14.1]}
15... Bxb4 {[%clk 0:01:43.7]} 16. a3 {[%clk 0:02:14.5]} 16... Bxc3 {[%clk
0:01:39.3]} 17. Qxc3 {[%clk 0:02:15.4]} 17... Bxe4 {[%clk 0:01:27.3]} 18. Rad1
{[%clk 0:01:49.8]} 18... Qc7 {[%clk 0:01:25.1]} 19. Nd4 {[%clk 0:01:40]} 19...
Bxg2 {[%clk 0:01:22.7]} 20. Kxg2 {[%clk 0:01:40.9]} 20... Rxe1 {[%clk
0:01:15.8]} 21. Rxe1 {[%clk 0:01:39.7]} 21... Nf8 {[%clk 0:01:07.5]} 22. Nb5
{[%clk 0:01:31.4]} 22... Qd7 {[%clk 0:00:58.1]} 23. Nd4 {[%clk 0:01:27.6]} 23...
Qd5+ {[%clk 0:00:55.5]} 24. Kg1 {[%clk 0:01:24.6]} 24... Re8 {[%clk 0:00:49.6]}
25. Rxe8 {[%clk 0:01:23.5]} 25... Nxe8 {[%clk 0:00:50.5]} 26. Nf5 {[%clk
0:01:17.3]} 26... Qxf5 {[%clk 0:00:46.6]} 27. Qe3 {[%clk 0:01:12.3]} 27... Ne6
{[%clk 0:00:36.9]} 28. h3 {[%clk 0:01:07.8]} 28... Qxh3 {[%clk 0:00:27.4]} 29.
Qe5 {[%clk 0:01:06]} 29... Qg4 {[%clk 0:00:22.7]} 30. Kg2 {[%clk 0:01:02.5]}
30... Qd1 {[%clk 0:00:19.5]} 31. Bc3 {[%clk 0:00:59.6]} 31... Qd5+ {[%clk
0:00:19.1]} 32. Qxd5 {[%clk 0:00:58.4]} 32... cxd5 {[%clk 0:00:20]} 33. Be5
{[%clk 0:00:58.2]} 33... Kf8 {[%clk 0:00:19.4]} 34. Bb8 {[%clk 0:00:58.1]} 34...
a6 {[%clk 0:00:18.6]} 35. Ba7 {[%clk 0:00:58.7]} 35... Ke7 {[%clk 0:00:18.3]}
36. Be3 {[%clk 0:00:59.3]} 36... Nd6 {[%clk 0:00:17.2]} 37. Kf3 {[%clk
0:00:59.9]} 37... Nc4 {[%clk 0:00:16.6]} 38. Bc1 {[%clk 0:00:59.8]} 38... Kd6
{[%clk 0:00:15.4]} 39. Ke2 {[%clk 0:00:59]} 39... Nd4+ {[%clk 0:00:15]} 40. Kd3
{[%clk 0:00:59.2]} 40... Nc6 {[%clk 0:00:11.7]} 41. f4 {[%clk 0:00:58.8]} 41...
f6 {[%clk 0:00:09.6]} 42. f5 {[%clk 0:00:57.7]} 42... N6e5+ {[%clk 0:00:08.6]}
43. Ke2 {[%clk 0:00:56.9]} 43... Kc5 {[%clk 0:00:08.1]} 44. Kd1 {[%clk
0:00:52.5]} 44... Kd4 {[%clk 0:00:07.4]} 45. Kc2 {[%clk 0:00:52.9]} 45... Ke4
{[%clk 0:00:06.6]} 46. Kb3 {[%clk 0:00:51.3]} 46... Kxf5 {[%clk 0:00:05.9]} 47.
Kb4 {[%clk 0:00:50.9]} 47... Kg4 {[%clk 0:00:04.1]} 48. Kc3 {[%clk 0:00:51.3]}
48... Kxg3 {[%clk 0:00:04]} 49. a4 {[%clk 0:00:51.8]} 49... h5 {[%clk
0:00:03.9]} 50. Kb4 {[%clk 0:00:52.5]} 50... h4 {[%clk 0:00:03.8]} 51. Kc5
{[%clk 0:00:53]} 51... h3 {[%clk 0:00:03.7]} 52. Kxd5 {[%clk 0:00:53.4]} 52...
h2 {[%clk 0:00:03.3]} 53. Bb2 {[%clk 0:00:51.3]} 53... h1=Q+ {[%clk 0:00:03.1]}
54. Kc5 {[%clk 0:00:51.1]} 54... Qc6+ {[%clk 0:00:02.7]} 55. Kb4 {[%clk
0:00:52]} 55... Qb6+ {[%clk 0:00:02.5]} 56. Kc3 {[%clk 0:00:52.2]} 56... Qxb2#
{[%clk 0:00:02.8]} 0-1

[Event "Betsys MČR v online bleskovém šachu 2021"]
[Site "Chess.com"]
[Date "2021.04.17"]
[Round "8"]
[White "SajdlJosef"]
[Black "sajmon8"]
[Result "0-1"]
[WhiteElo "1826"]
[BlackElo "1643"]
[TimeControl "180+1"]
[EndTime "10:21:38 PDT"]
[Termination "Uživatel sajmon8 zvítězil na čas"]

1. d4 {[%clk 0:03:00]} 1... d5 {[%clk 0:02:56.6]} 2. Nf3 {[%clk 0:02:59.4]} 2...
Nf6 {[%clk 0:02:53.6]} 3. Bf4 {[%clk 0:02:59.7]} 3... Bf5 {[%clk 0:02:50.9]} 4.
e3 {[%clk 0:02:59.4]} 4... e6 {[%clk 0:02:51.2]} 5. Be2 {[%clk 0:02:59]} 5...
Bd6 {[%clk 0:02:50.5]} 6. Ne5 {[%clk 0:02:57.6]} 6... O-O {[%clk 0:02:49.2]} 7.
g4 {[%clk 0:02:56.1]} 7... Bg6 {[%clk 0:02:41.1]} 8. h4 {[%clk 0:02:53.3]} 8...
h6 {[%clk 0:02:10.3]} 9. Nxg6 {[%clk 0:02:50.5]} 9... fxg6 {[%clk 0:02:07.5]}
10. Bd3 {[%clk 0:02:32.6]} 10... Nbd7 {[%clk 0:02:02.6]} 11. Bxg6 {[%clk
0:02:27.7]} 11... e5 {[%clk 0:02:01.5]} 12. dxe5 {[%clk 0:02:17.7]} 12... Bxe5
{[%clk 0:01:59]} 13. Nc3 {[%clk 0:01:53.3]} 13... Bxf4 {[%clk 0:01:55.4]} 14.
exf4 {[%clk 0:01:51.9]} 14... Qe7+ {[%clk 0:01:46.9]} 15. Kf1 {[%clk 0:01:39.7]}
15... c6 {[%clk 0:01:42.5]} 16. Qf3 {[%clk 0:01:17.6]} 16... Qd6 {[%clk
0:01:32]} 17. Re1 {[%clk 0:01:03.8]} 17... Nh7 {[%clk 0:01:21.2]} 18. f5 {[%clk
0:00:55.3]} 18... Ne5 {[%clk 0:01:10.8]} 19. Bxh7+ {[%clk 0:00:46.3]} 19... Kxh7
{[%clk 0:01:06.7]} 20. Qg3 {[%clk 0:00:46]} 20... Nc4 {[%clk 0:01:02.9]} 21.
Qxd6 {[%clk 0:00:31.1]} 21... Nxd6 {[%clk 0:01:01.2]} 22. Re6 {[%clk 0:00:27.5]}
22... Nc4 {[%clk 0:00:55.9]} 23. b3 {[%clk 0:00:25]} 23... Na3 {[%clk
0:00:50.3]} 24. Re2 {[%clk 0:00:22.2]} 24... Rae8 {[%clk 0:00:46.8]} 25. f3
{[%clk 0:00:20.5]} 25... Rxe2 {[%clk 0:00:45]} 26. Kxe2 {[%clk 0:00:19]} 26...
Nxc2 {[%clk 0:00:44.8]} 27. Kd3 {[%clk 0:00:18.4]} 27... Nb4+ {[%clk 0:00:43.1]}
28. Kd2 {[%clk 0:00:16.3]} 28... Re8 {[%clk 0:00:42.1]} 29. a3 {[%clk
0:00:15.3]} 29... Na6 {[%clk 0:00:41.1]} 30. g5 {[%clk 0:00:14.6]} 30... Nc5
{[%clk 0:00:37]} 31. f6 {[%clk 0:00:12.9]} 31... gxf6 {[%clk 0:00:35.2]} 32.
gxf6 {[%clk 0:00:11.6]} 32... Kg6 {[%clk 0:00:35.3]} 33. b4 {[%clk 0:00:09.4]}
33... Nd7 {[%clk 0:00:25.1]} 34. Ne2 {[%clk 0:00:07]} 34... Kxf6 {[%clk
0:00:23]} 35. Nf4 {[%clk 0:00:05.3]} 35... Ne5 {[%clk 0:00:19.5]} 36. Nd3 {[%clk
0:00:04.1]} 36... Nxf3+ {[%clk 0:00:17.8]} 37. Kc3 {[%clk 0:00:03.5]} 37... Ne5
{[%clk 0:00:16.5]} 38. Rf1+ {[%clk 0:00:02.3]} 38... Kg6 {[%clk 0:00:12.1]} 39.
Re1 {[%clk 0:00:01.4]} 39... Nxd3 {[%clk 0:00:09]} 0-1

[Event "Betsys MČR v online bleskovém šachu 2021"]
[Site "Chess.com"]
[Date "2021.04.17"]
[Round "8"]
[White "Drak1961"]
[Black "reflexia64"]
[Result "0-1"]
[WhiteElo "2087"]
[BlackElo "2282"]
[TimeControl "180+1"]
[EndTime "10:21:40 PDT"]
[Termination "Uživatel reflexia64 zvítězil matem"]

1. d4 {[%clk 0:02:59.8]} 1... e6 {[%clk 0:02:57.5]} 2. Nf3 {[%clk 0:02:59.2]}
2... f5 {[%clk 0:02:56.5]} 3. g3 {[%clk 0:02:55.2]} 3... Nf6 {[%clk 0:02:56.4]}
4. Bg2 {[%clk 0:02:55]} 4... d5 {[%clk 0:02:52.4]} 5. b3 {[%clk 0:02:52]} 5...
Bd6 {[%clk 0:02:51]} 6. O-O {[%clk 0:02:50.4]} 6... O-O {[%clk 0:02:50.1]} 7.
Ba3 {[%clk 0:02:46.3]} 7... b6 {[%clk 0:02:49.2]} 8. Bxd6 {[%clk 0:02:43.2]}
8... cxd6 {[%clk 0:02:48.4]} 9. c4 {[%clk 0:02:36.4]} 9... Bb7 {[%clk
0:02:46.9]} 10. Ng5 {[%clk 0:02:26.8]} 10... Qe7 {[%clk 0:02:43.2]} 11. Nc3
{[%clk 0:02:25.3]} 11... h6 {[%clk 0:02:34.3]} 12. Nh3 {[%clk 0:02:24.1]} 12...
dxc4 {[%clk 0:02:31.6]} 13. Bxb7 {[%clk 0:02:20.9]} 13... Qxb7 {[%clk
0:02:30.3]} 14. bxc4 {[%clk 0:02:20.7]} 14... Nbd7 {[%clk 0:02:26.2]} 15. Nf4
{[%clk 0:02:18.7]} 15... Rfe8 {[%clk 0:02:23.2]} 16. Qb3 {[%clk 0:02:00.9]}
16... g5 {[%clk 0:02:05.9]} 17. Nd3 {[%clk 0:01:56.1]} 17... Rac8 {[%clk
0:02:02.7]} 18. Rac1 {[%clk 0:01:47]} 18... Kg7 {[%clk 0:01:52.3]} 19. Rfd1
{[%clk 0:01:44.9]} 19... Ne4 {[%clk 0:01:39.4]} 20. Nb5 {[%clk 0:01:26.6]} 20...
a6 {[%clk 0:01:37.7]} 21. Na3 {[%clk 0:01:25.6]} 21... g4 {[%clk 0:01:31.4]} 22.
Nf4 {[%clk 0:01:22.5]} 22... Ng5 {[%clk 0:01:29.4]} 23. c5 {[%clk 0:01:00.2]}
23... dxc5 {[%clk 0:01:19.5]} 24. dxc5 {[%clk 0:00:59.2]} 24... Nxc5 {[%clk
0:01:18.8]} 25. Qb2+ {[%clk 0:00:52.6]} 25... Kh7 {[%clk 0:01:02.3]} 26. Nc4
{[%clk 0:00:51.5]} 26... Nce4 {[%clk 0:00:52.2]} 27. Qf6 {[%clk 0:00:40]} 27...
Qg7 {[%clk 0:00:47.4]} 28. Qxg7+ {[%clk 0:00:37.9]} 28... Kxg7 {[%clk
0:00:46.1]} 29. Nxb6 {[%clk 0:00:34.6]} 29... Rxc1 {[%clk 0:00:42.3]} 30. Rxc1
{[%clk 0:00:34.4]} 30... e5 {[%clk 0:00:36.7]} 31. Nfd5 {[%clk 0:00:31.4]} 31...
Nh3+ {[%clk 0:00:34.7]} 32. Kg2 {[%clk 0:00:30.3]} 32... Nexf2 {[%clk
0:00:25.5]} 33. Rc7+ {[%clk 0:00:29.2]} 33... Kg6 {[%clk 0:00:24.1]} 34. Ne7+
{[%clk 0:00:26.2]} 34... Kg5 {[%clk 0:00:20.5]} 35. Nbd5 {[%clk 0:00:23.7]}
35... Ne4 {[%clk 0:00:17.9]} 36. Rc6 {[%clk 0:00:22]} 36... f4 {[%clk
0:00:10.7]} 37. Rxa6 {[%clk 0:00:15.7]} 37... fxg3 {[%clk 0:00:07.3]} 38. hxg3
{[%clk 0:00:14.8]} 38... Rf8 {[%clk 0:00:07.3]} 39. Ne3 {[%clk 0:00:08.3]} 39...
Rf2+ {[%clk 0:00:06]} 40. Kh1 {[%clk 0:00:03.3]} 40... Nxg3# {[%clk 0:00:06.2]}
0-1

[Event "Betsys MČR v online bleskovém šachu 2021"]
[Site "Chess.com"]
[Date "2021.04.17"]
[Round "8"]
[White "Staci_fiknout_Navara_Plat"]
[Black "DavidekIII"]
[Result "0-1"]
[WhiteElo "1911"]
[BlackElo "2200"]
[TimeControl "180+1"]
[EndTime "10:21:40 PDT"]
[Termination "Uživatel DavidekIII zvítězil na čas"]

1. c4 {[%clk 0:03:00.9]} 1... f5 {[%clk 0:02:59.1]} 2. Nc3 {[%clk 0:02:59.7]}
2... b6 {[%clk 0:02:56.2]} 3. g3 {[%clk 0:02:58.9]} 3... Bb7 {[%clk 0:02:55.6]}
4. Nf3 {[%clk 0:02:59.6]} 4... Nf6 {[%clk 0:02:55.9]} 5. Bg2 {[%clk 0:02:59.7]}
5... g6 {[%clk 0:02:56.2]} 6. d4 {[%clk 0:03:00]} 6... Bg7 {[%clk 0:02:56]} 7.
O-O {[%clk 0:03:00.6]} 7... e6 {[%clk 0:02:55.7]} 8. Bg5 {[%clk 0:03:00.9]} 8...
h6 {[%clk 0:02:53.9]} 9. Bxf6 {[%clk 0:03:00.2]} 9... Qxf6 {[%clk 0:02:49.1]}
10. e3 {[%clk 0:02:59.8]} 10... O-O {[%clk 0:02:42.8]} 11. Rc1 {[%clk
0:02:59.7]} 11... d6 {[%clk 0:02:42]} 12. Qd2 {[%clk 0:02:57.6]} 12... Nd7
{[%clk 0:02:40.5]} 13. b3 {[%clk 0:02:51.3]} 13... g5 {[%clk 0:02:33.3]} 14. Ne2
{[%clk 0:02:33.9]} 14... Be4 {[%clk 0:02:16.2]} 15. Ne1 {[%clk 0:02:33.6]} 15...
Bxg2 {[%clk 0:02:15.1]} 16. Nxg2 {[%clk 0:02:33.5]} 16... Qe7 {[%clk 0:02:01.5]}
17. Qd3 {[%clk 0:02:29.5]} 17... Rad8 {[%clk 0:01:22.6]} 18. Rfe1 {[%clk
0:02:27.9]} 18... Nf6 {[%clk 0:01:21]} 19. d5 {[%clk 0:02:08.6]} 19... e5 {[%clk
0:00:55.7]} 20. Qxf5 {[%clk 0:01:28.2]} 20... Nxd5 {[%clk 0:00:55]} 21. Qe4
{[%clk 0:01:28.1]} 21... Nf6 {[%clk 0:00:51.8]} 22. Qc2 {[%clk 0:01:15.8]} 22...
Qf7 {[%clk 0:00:46.8]} 23. f4 {[%clk 0:01:15.5]} 23... Qh5 {[%clk 0:00:26.7]}
24. Qd2 {[%clk 0:00:46.1]} 24... Ng4 {[%clk 0:00:22.4]} 25. h4 {[%clk
0:00:46.1]} 25... gxf4 {[%clk 0:00:16.8]} 26. exf4 {[%clk 0:00:41.5]} 26... exf4
{[%clk 0:00:10]} 27. Nexf4 {[%clk 0:00:40.4]} 27... Qc5+ {[%clk 0:00:09.5]} 28.
Kh1 {[%clk 0:00:33.1]} 28... Nf2+ {[%clk 0:00:07.8]} 29. Kh2 {[%clk 0:00:31.2]}
29... Ng4+ {[%clk 0:00:06.5]} 30. Kh1 {[%clk 0:00:28.6]} 30... Rde8 {[%clk
0:00:05.6]} 31. Nd5 {[%clk 0:00:16.8]} 31... c6 {[%clk 0:00:03.7]} 32. Ndf4
{[%clk 0:00:15.1]} 32... Re5 {[%clk 0:00:02.3]} 33. Rxe5 {[%clk 0:00:14.2]}
33... Qxe5 {[%clk 0:00:03.2]} 34. Re1 {[%clk 0:00:11]} 34... Qf5 {[%clk
0:00:03.7]} 35. Qe2 {[%clk 0:00:04.4]} 35... Qf6 {[%clk 0:00:02.9]} 36. Qxg4
{[%clk 0:00:01.1]} 36... h5 {[%clk 0:00:03]} 0-1